Cogmind - Beta 16.1 @@@ ROGUE MODE // 2026.02.10 @ 10:05:23 Player: J1ang-5h1 Result: Destroyed by BM-RLE(R) with Subdweller Machine Gun Performance ------------- Evolutions (0) 0 Regions Visited (2) 400 Robots Destroyed (32) 160 Value Destroyed (641) 641 Prototype IDs (2) 40 Alien Tech Used (0) 0 Bonus (0) 0 TOTAL SCORE: 1241 Bonus ------- None Cogmind --------- Core Integrity 0/250 Matter 252/300 Energy 168/170 System Corruption 1% Temperature Cool (0) Movement Rolling (110) Location -10/Subcaves Parts ------- > --- POWER (1) -------- Makeshift Power Source > --- PROPULSION (2) --- Subdweller Monowheel Subdweller Monowheel > --- UTILITY (2) ------ Medium Storage Unit Recalibrator > --- WEAPON (2) ------- Autogun Mace > --- INVENTORY (10) --- Subdweller Power Source Subdweller Monowheel High-capacity Storage Unit High-capacity Matter Pod (67) Subdweller Optics Hacking Suite Subdweller Beam Cannon Autogun Grenade Launcher Peak State ------------ > --- POWER ------------ Makeshift Power Source > --- PROPULSION ------- Subdweller Monowheel Subdweller Monowheel > --- UTILITY ---------- Medium Storage Unit Recalibrator > --- WEAPON ----------- Autogun Autogun > --- INVENTORY -------- Subdweller Power Source Subdweller Monowheel High-capacity Storage Unit High-capacity Matter Pod Subdweller Optics Hacking Suite Subdweller Beam Cannon Grenade Launcher Mace [Rating: 18] Favorites ----------- Power Light Ion Engine Engine Light Ion Engine Propulsion Aluminum Leg Leg Aluminum Leg Wheel Subdweller Monowheel Utility Medium Storage Unit Device Seismic Detector Storage Medium Storage Unit Weapon Autogun Ballistic Gun Autogun Impact Weapon Mace Build | -11 -10 -10 ------- Run | Yrd Mat Sub Slots Evolved . | . . . Power . | . . . Propulsion . | . . . Utility . | . . . Weapon . | . . . Parts Attached 23 | 6 10 7 Power 4 | 1 1 2 Engine 4 | 1 1 2 Core . | . . . Reactor . | . . . Propulsion 8 | 2 3 3 Treads . | . . . Leg 5 | 2 3 . Wheel 3 | . . 3 Hover . | . . . Flight . | . . . Utility 4 | 1 2 1 Device 2 | . 1 1 Storage 2 | 1 1 . Processor . | . . . Hackware . | . . . Protection . | . . . Artifact . | . . . Weapon 7 | 2 4 1 Energy Gun . | . . . Energy Cannon . | . . . Ballistic Gun 6 | 2 3 1 Ballistic Cannon . | . . . Launcher . | . . . Special Weapon . | . . . Impact Weapon 1 | . 1 . Slashing Weapon . | . . . Piercing Weapon . | . . . Special Melee Weapon . | . . . Unidentified Prototypes . | . . . Parts Lost 7 | . 1 6 Power 2 | . 1 1 Propulsion 2 | . . 2 Utility 1 | . . 1 Weapon 2 | . . 2 Highest Loss Streak 3 | . 1 3 To Critical Strikes . | . . . Average Backups 8 | 2 9 9 Power . | . . . Propulsion . | . 1 . Utility 3 | . 3 4 Weapon 3 | . 4 3 Tool/Special . | . . . Unused Backups 12 | . 3 9 Power 1 | . . 1 Propulsion 1 | . . 1 Utility 7 | . 2 5 Weapon 3 | . 1 2 Tool/Special . | . . . Average Slot Usage (%) 97 | . 96 97 Engine 13 | . 13 13 Leg 21 | . 28 6 Wheel 6 | . . 20 Device 12 | . 11 14 Storage 14 | . 14 14 Ballistic Gun 26 | . 26 26 Impact Weapon 1 | . 1 1 Peak Build Rating 18 | 6 11 18 Average Rating 10 | 4 9 13 On Entrance 5 | . 6 11 Avg Prop Armor Cover (%) . | . . . Naked Turns . | . . . Heaviest Build 22 | 12 20 22 Greatest Support 40 | 20 20 40 Greatest Overweight (x) 3 | 3 . 2 Average Overweight (x) . | . . . Largest Inventory Capacity 10 | 8 10 10 Average Capacity 9 | 7 9 10 Most Carried 10 | 4 10 10 Average Carried 8 | 2 9 9 Final Capacity 10 | 8 10 10 Final Carried 10 | 4 10 9 Class Distribution -------------------- 77% | Mutant 22% | Scavenger-Mutant Dominant Class ---------------- Mutant | -10/Materials Scavenger-Mutant | -10/Subcaves Resources | -11 -10 -10 ----------- Run | Yrd Mat Sub Matter Collected 1351 | 267 787 297 Remotely . | . . . Salvage Created 1133 | 94 841 198 Parts 66 | 4 48 14 Haulers Intercepted 2 | . 2 . Recyclers Shooed 2 | 1 1 . Parts Field Recycled . | . . . Retrieved Matter . | . . . Parts Self-Destructed 9 | . . 9 Prevented . | . . . Parts Restored . | . . . Kills | -11 -10 -10 ------- Run | Yrd Mat Sub Combat Hostiles Destroyed 22 | . 18 4 Guns 22 | . 18 4 Classes Destroyed 9 | 2 6 1 Worker 1 | . 1 . Tunneler 1 | 1 . . Hauler 2 | . 2 . Recycler 2 | 1 1 . Mechanic 1 | . 1 . Watcher 3 | . 3 . Swarmer 9 | . 9 . Grunt 9 | . 9 . Subdweller 4 | . . 4 Best Kill Streak 3 | 1 3 1 Combat Bots Only 3 | . 3 1 Max Kills in Single Turn 1 | 1 1 1 Gunslinging . | . . . Exploded . | . . . Melee . | . . . Uniques/NPCs Destroyed . | . . . Combat | -11 -10 -10 -------- Run | Yrd Mat Sub Hostile Shots Fired 107 | . 71 36 Missed 23 | . 17 6 Hits 84 | . 54 30 Projectile 84 | . 54 30 Damage Taken 1239 | . 519 720 Core 265 | . 113 152 Absorbed by Shields . | . . . Regen/Repaired (Parts) 95 | . 95 . Core Remaining (%) 100 | 100 . . Volleys Fired 96 | 10 63 23 Largest 2 | 2 2 2 Hottest 46 | 40 46 46 Shots Fired 190 | 20 126 44 Gun 190 | 20 126 44 Cannon . | . . . Launcher . | . . . Special . | . . . Kinetic 190 | 20 126 44 Thermal . | . . . Explosive . | . . . Electromagnetic . | . . . Robot Hit Streak 16 | 4 5 16 Robot Miss Streak 4 | 3 4 1 Penetration Max . | . . . Secondary Targets 2 | . 2 . Max Gunslinging Chain 1 | . 1 . Shots Hit Robots 111 | 12 63 36 Core Hits 45 | 3 35 7 Critical Kills . | . . . Critical Parts Destroyed . | . . . Critical Strikes . | . . . Melee Attacks 17 | . 11 6 Impact 17 | . 11 6 Slashing . | . . . Piercing . | . . . Sneak Attacks . | . . . Combat Hostiles . | . . . Follow-up Attacks . | . . . Damage Inflicted 1682 | 145 994 543 Guns 1682 | 145 994 543 Cannons . | . . . Explosions . | . . . Melee . | . . . Ramming . | . . . Kinetic 1682 | 145 994 543 Thermal . | . . . Explosive . | . . . Electromagnetic . | . . . Impact . | . . . Slashing . | . . . Piercing . | . . . Highest Corruption 1 | . 1 1 Average Corruption 1 | . 1 1 Corruption Purged . | . . . Corruption Blocked . | . . . Effects 9 | . 5 4 Matter Fused 1 | . 1 . Heat Flow Errors 4 | . 2 2 Energy Discharges 3 | . 2 1 Parts Rejected 1 | . . 1 Overload Shots . | . . . Overflow Damage . | . . . Projectiles . | . . . Explosions . | . . . Melee . | . . . Knockbacks . | . . . Impact . | . . . Kinetic . | . . . Secondary . | . . . Self-Inflicted Damage . | . . . Shots . | . . . Rammed . | . . . Targets Rammed . | . . . Kicked . | . . . Crushed . | . . . Highest Temperature 229 | . 169 229 Average Temperature 28 | . 23 107 Received Heat Transfer 252 | . 54 198 Siege Activations . | . . . Martial Activations . | . . . Shielding Activations . | . . . Robots Disrupted . | . . . Combat Hostiles . | . . . Robots Corrupted . | . . . Combat Hostiles . | . . . Parts Fried . | . . . Impact Corruptions . | . . . Robots Melted . | . . . Combat Hostiles . | . . . Parts Melted . | . . . Heat Transferred . | . . . Parts Sabotaged . | . . . Parts Stolen . | . . . Parts Stripped . | . . . Power Chain Reactions . | . . . Alert | -11 -10 -10 ------- Run | Yrd Mat Sub Maximum Alert Level . | . . . Low Security (%) 100 | 100 100 . Level 1 . | . . . Level 2 . | . . . Level 3 . | . . . Level 4 . | . . . Level 5 . | . . . High Security . | . . . Max Security . | . . . Peak Influence 181 | 5 181 . Initial . | . . . Average 65 | . 71 . Influence Increases 623 | 10 613 . Destroy 0b10 Robot/C 360 | . 360 . Destroy 0b10 Robot/NC 65 | 10 55 . Destroy Leader 90 | . 90 . Successful Hack 9 | . 9 . Select Force Hacks 60 | . 60 . Destroy Structure 9 | . 9 . Lose Combat Pursuer 30 | . 30 . Influence Decreases 623 | 10 455 158 Entered New Map 77 | . . 77 Time Decay 506 | 10 445 51 Lost Part 40 | . 10 30 Squads Dispatched 5 | . 5 . Investigation 3 | . 3 . Extermination . | . . . Reinforcement 2 | . 2 . Assault . | . . . Garrison . | . . . Intercept . | . . . Searches Triggered . | . . . Construction Impeded . | . . . Haulers Reinforced . | . . . Active Scanning Responses . | . . . Cargo Convoy Interrupts . | . . . Stealth | -11 -10 -10 --------- Run | Yrd Mat Sub Distress Signals . | . . . Communications Jammed . | . . . Distress Signals . | . . . Times Spotted 34 | . 27 7 Peak Tracking Total 7 | . 7 2 Tactical Retreats 2 | . 1 1 Traps | -11 -10 -10 ------- Run | Yrd Mat Sub Traps Triggered 2 | . 1 1 Indirectly . | . . . Trap Hack Attempts . | . . . Triggered . | . . . Disarmed . | . . . Reprogrammed . | . . . Reused . | . . . Traps Extracted . | . . . Installed . | . . . Triggered . | . . . Machines | -11 -10 -10 ---------- Run | Yrd Mat Sub Machines Disabled . | . . . Max in Single Turn . | . . . Machines Repaired . | . . . Machines Dismantled . | . . . Machines Sabotaged . | . . . Overloaded Fab Kills . | . . . Hacking | -11 -10 -10 --------- Run | Yrd Mat Sub Machines Accessed 7 | . 6 1 Terminals 3 | . 3 . Fabricators . | . . . Repair Stations 1 | . 1 . Recycling Units 2 | . 2 . Scanalyzers . | . . . Garrison Access . | . . . Total Hacks 27 | . 23 4 Successful 17 | . 13 4 Failed 10 | . 10 . Catastrophic . | . . . Database Lockouts . | . . . Manual 11 | . 11 . Terminals 13 | . 13 . Fabricators . | . . . Repair Stations 6 | . 6 . Recycling Units 4 | . 4 . Scanalyzers . | . . . Garrison Access . | . . . Terminal Hacks 7 | . 3 4 Record 4 | . . 4 Robot Analysis 1 | . 1 . Prototype ID Bank 1 | . 1 . Zone Layout 1 | . 1 . Fabricator Hacks . | . . . Repair Station Hacks 4 | . 4 . Scan Component 2 | . 2 . Repair 2 | . 2 . Recycling Unit Hacks 1 | . 1 . Report Inventory 1 | . 1 . Scanalyzer . | . . . Garrison Access Hacks . | . . . Unauthorized Hacks 5 | . 5 . Terminals 3 | . 3 . Botnet 2 | . 2 . Skim 1 | . 1 . Fabricators . | . . . Repair Stations . | . . . Recycling Units 2 | . 2 . Tunnel 2 | . 2 . Scanalyzers . | . . . Garrison Access . | . . . Data Cores Recovered . | . . . Used . | . . . Hacking Detections 4 | . 4 . Full Trace Events 1 | . 1 . Feedback Events . | . . . Feedback Blocked . | . . . Robot Schematics Acquired . | . . . Robots Built . | . . . Authchips . | . . . Time . | . . . Total Robot Build Rating . | . . . Part Schematics Acquired . | . . . Parts Built . | . . . Authchips . | . . . Time . | . . . Total Part Build Rating . | . . . Part Studies Acquired . | . . . Parts Repaired 2 | . 2 . Time 64 | . 64 . Parts Recycled . | . . . Recycled Matter . | . . . Retrieved Matter . | . . . Retrieved Components . | . . . Parts Scanalyzed . | . . . Part Schematics Acquired . | . . . Parts Damaged . | . . . Bothacking | -11 -10 -10 ------------ Run | Yrd Mat Sub Used RIF Installer . | . . . Robots Hacked . | . . . Non-combat . | . . . Combat . | . . . Robot Hacks Applied . | . . . Relay Couplers Released . | . . . Fabnet Peak Effective % . | . . . Robots Rewired . | . . . Allies Hacked . | . . . Hacks Repelled . | . . . Allies | -11 -10 -10 -------- Run | Yrd Mat Sub Total Allies . | . . . Largest Group . | . . . Highest-Rated Group . | . . . Highest-Rated Ally . | . . . Total Orders . | . . . Ally Attacks . | . . . Total Damage . | . . . Kills . | . . . Allies Corrupted . | . . . Allies Melted . | . . . Intel | -11 -10 -10 ------- Run | Yrd Mat Sub Active Infowar (turns) 1442 | . 1015 427 Seismic 1442 | . 1015 427 Robot Analysis Total 1 | . 1 . Derelict Logs Recovered . | . . . Drone Launches . | . . . Drone Recoveries . | . . . Exploration | -11 -10 -10 ------------- Run | Yrd Mat Sub Turns Passed 1855 | 121 1213 521 Spaces Moved 1181 | 66 755 360 Core 31 | 31 . . Treads . | . . . Legs 832 | 35 755 42 Wheels 318 | . . 318 Hover . | . . . Flight . | . . . Fastest Speed 50 | 50 120 105 Average Speed 117 | 114 120 113 Slowest Speed 260 | 200 120 260 Overloaded Moves . | . . . Propulsion Burnouts . | . . . Robots Hopped . | . . . Potential Cave-ins . | . . . Cave-ins Triggered . | . . . Exploration Rate (%) 42 | 4 96 28 Regions Visited 2 Branch Regions 1 Pre-discovered Areas 2 | . 2 . Known Exits Taken . | . . . Unknown Exits Taken 2 | 1 1 . Scrap Searched . | . . . Spaces Dug 7 | . 7 . Terrain Destroyed 7 | . 7 . Melee 7 | . 7 . Projectile . | . . . AOE . | . . . Terrain Rammed . | . . . Walls Destroyed . | . . . Machines Disabled . | . . . Actions | -11 -10 -10 --------- Run | Yrd Mat Sub Total 1456 | 91 937 428 Wait 78 | . 64 14 Move 1179 | 65 754 360 Hop . | . . . Pick Up 33 | 10 15 8 Fast Attach 3 | . 2 1 Attach 16 | 6 3 7 Detach . | . . . Swap 20 | . 16 4 Drop 14 | . 9 5 Fire 96 | 10 63 23 Melee 17 | . 11 6 Ram . | . . . Kick . | . . . Crush . | . . . Escape Stasis . | . . . Rewire . | . . . Trap . | . . . Miscellaneous . | . . . Route ------- -11/Scrapyard -10/Materials (discovered 5 exits: [*Mat x3] / [*Min] / *Sub) -10/Subcaves History --------- Turn | Location | Event 13 | -11/Scrapyard | Discovered new exit (range 16) 122 | -11/Scrapyard | Entered Materials 308 | -10/Materials | Build established: Mutant 502 | -10/Materials | Discovered new exit (range 16) 629 | -10/Materials | Discovered new exit (range 16) 694 | -10/Materials | Discovered new exit (range 8) 781 | -10/Materials | Discovered new exit (range 16) 928 | -10/Materials | Discovered new exit (range 16) 989 | -10/Materials | Repaired Autogun 1023 | -10/Materials | Repaired Autogun 1335 | -10/Materials | Entered Subcaves 1384 | -10/Subcaves | Core integrity fell below 50% 1433 | -10/Subcaves | Core integrity fell below 20% 1455 | -10/Subcaves | Lost 3 parts (1p1n1w) 1725 | -10/Subcaves | Build established: Scavenger-Mutant 1792 | -10/Subcaves | Visited Clippyterm 1795 | -10/Subcaves | Learned Factory trap positions 1822 | -10/Subcaves | Shifting Twisted Machinery released Mak. Laser 1856 | -10/Subcaves | Destroyed by BM-RLE(R) with Subdweller Machine Gun Last Messages --------------- queries and responses. --DD-NU8 >>Record "Banana Peels" It looks like you're afraid of the consquences of stepping on the wrong spot, would you like help? Data stored: Factory trap records. >>Record! "Permadeath" It looks like you're defining "roguelike," quit while you're ahead. Please. >>Record! "SUBCON Basin" It looks like you want to play with dangerous UFD tech. While I can't recommend taking subatomizers out of the Subcaves, I can warn that doing so is a one-way ticket to summoning unimaginable chaos on any area not hardened against them. That includes... just about anywhere. 01815_ E8-3UP(u) builds Twisted Machinery. Mak. Laser falls loose from the Twisted Machinery. Map ----- +----------------------------------------------------+ | ??????????????????#"" ## """ #????????????????? | | ??????????????????#"""### " " #????????????????? | | ??????????????????#####?# """ ##???????????????? | | ????????????????????????#" " #???????????????? | | ???????????????????????##""## "#???????????????? | | ???????????????????????# ""#""""#????????? #????? | | ???????????????????????## ##??"""???????? ????? | | ???????????????????????# ##????????????# ?????? | | ???????????????????????# #??????????? #??????? | | ???????????????????????## ###????????# #???????? | | ????????????????????????# "#####??? ????????? | | ????????????????????????## " " ##?" ? ????? | | ?????????????????????????###"" ##"" ##??? | | ???????????????????????????#" " #" #??? | | ???????????????????????????# """""" "" ??? | | ??????????????????????????##" "#""" "" ??? | | ??????????????????????##??# "####" #"" ???? | | ??????????????????????# ### "#??##" #?# ???? | | ??????????????????????# ## "###??[##??????????? | | ??????????????????????# """## #???????????? | | ??????????????????????# #???????????? | | ??????????????????????# ## #??????????? | | ??????????????????????## ## #?# # ##??????????? | | ?????????????????????###" ####??### #???????????? | | ?????????????????"#### "" ##???????? #??????????? | | ?????????????????" """ @ #????????? ???????????? | | ???????????????? "" #??????????????????? | | ????????????????? ""### ???????????????? | | ?????????????????"""???## ????????????? | | ????????????????????????## # R #?????????? | | ?????????????????????????? ######?? R??????????? | | ??????????????????????????# #????????? ??????????? | | ???????????????????????????##????????????????????? | | ?????????????????????????????????????????????????? | | ?????????????????????????????????????????????????? | | ?????????????????????????????????????????????????? | | ?????????????????????????????????????????????????? | | ?????????????????????????????????????????????????? | | ?????????????????????????????????????????????????? | | ?????????????????????????????????????????????????? | | ?????????????????????????????????????????????????? | | ?????????????????????????????????????????????????? | | ?????????????????????????????????????????????????? | | ?????????????????????????????????????????????????? | | ?????????????????????????????????????????????????? | | ?????????????????????????????????????????????????? | | ?????????????????????????????????????????????????? | | ?????????????????????????????????????????????????? | | | | | +----------------------------------------------------+ Best States ------------- Heat Dissipation 25 Energy Generation 15 Energy Capacity 200 Matter Stores 300 Matter Capacity 300 Sight Range 16 Terrain Scan Density 10 Evasion (%) 55 Item Schematics ----------------- None Robot Schematics ------------------ None Fabricated ------------ Nothing Repaired ---------- Autogun | 66% | -10/Materials Autogun | 51% | -10/Materials Studied --------- None Alien Tech Used ----------------- None Achievements -------------- None Challenges ------------ None Game ------ Seed PointyReinforcedPulseblaster Manual? 0 Play Time 00:20:01 Cumulative 395.4 hours Start 2026.02.10 @ 09:47:13 End 2026.02.10 @ 10:05:23 Sessions 1 Manual Loads 0 Difficulty Rogue Special Mode None Game No. 285 Rogue 275 Adventurer 0 Explorer 10 Win Type - Total 5 Types 5/0/0/0/0/0/0/0/0/0 Lore% 81 Gallery% 66 Achievement% 43 Wizard Run 0 Options --------- Layout 2 ASCII 0 Keyboard 0 Movement Mouse Keybinds 1 Fullscreen 1 Font 24/Smallcaps Map View 50x44 Zoom Use 0% Tactical HUD 1 Map Filters NONE Filters NONE Steam 1 RUN: 9035c6ab-e6f9-47d1-85b0-86b2c536ee02